[Event "Live Chess"]
[Site "Chess.com"]
[Date "2010.12.13"]
[Round "-"]
[White "richietamil"]
[Black "hipposcottimus"]
[Result "1-0"]
[CurrentPosition "rn1Q2k1/pp3ppp/2p5/8/5q2/6NP/PPP4K/R7 b - -"]
[Timezone "UTC"]
[ECO "A00"]
[ECOUrl "https://www.chess.com/openings/Kings-Fianchetto-Opening-1...e5-2.Bg2-d5"]
[UTCDate "2010.12.13"]
[UTCTime "18:08:26"]
[WhiteElo "1409"]
[BlackElo "1597"]
[TimeControl "60"]
[Termination "richietamil won by checkmate"]
[StartTime "18:08:26"]
[EndDate "2010.12.13"]
[EndTime "18:09:12"]
[Link "https://www.chess.com/game/live/76943650"]

1. g3 {[%clk 0:01:00]} 1... e5 {[%clk 0:01:00]} 2. Bg2 {[%clk 0:00:59.6]} 2... d5 {[%clk 0:00:59.7]} 3. e3 {[%clk 0:00:59.2]} 3... c6 {[%clk 0:00:58.9]} 4. Ne2 {[%clk 0:00:58.8]} 4... e4 {[%clk 0:00:58.2]} 5. O-O {[%clk 0:00:58.5]} 5... Nf6 {[%clk 0:00:57.7]} 6. h3 {[%clk 0:00:58.1]} 6... Bf5 {[%clk 0:00:57.1]} 7. Kh2 {[%clk 0:00:57.7]} 7... Bg6 {[%clk 0:00:56.8]} 8. d3 {[%clk 0:00:57.1]} 8... Bd6 {[%clk 0:00:56]} 9. dxe4 {[%clk 0:00:56]} 9... Bxg3+ {[%clk 0:00:55.7]} 10. Nxg3 {[%clk 0:00:54.6]} 10... Bxe4 {[%clk 0:00:55.2]} 11. Bxe4 {[%clk 0:00:53.3]} 11... dxe4 {[%clk 0:00:55]} 12. f3 {[%clk 0:00:52.1]} 12... O-O {[%clk 0:00:54]} 13. fxe4 {[%clk 0:00:51]} 13... Re8 {[%clk 0:00:53.7]} 14. e5 {[%clk 0:00:50.1]} 14... Rxe5 {[%clk 0:00:52.7]} 15. Nc3 {[%clk 0:00:48.8]} 15... Qc7 {[%clk 0:00:50.1]} 16. e4 {[%clk 0:00:47.5]} 16... Nxe4 {[%clk 0:00:46.2]} 17. Ncxe4 {[%clk 0:00:46.3]} 17... Rxe4 {[%clk 0:00:45.5]} 18. Rf4 {[%clk 0:00:44.3]} 18... Rxf4 {[%clk 0:00:42.6]} 19. Bxf4 {[%clk 0:00:43.4]} 19... Qxf4 {[%clk 0:00:42.3]} 20. Qd8# {[%clk 0:00:41.9]} 1-0

[Event "Live Chess"]
[Site "Chess.com"]
[Date "2010.12.13"]
[Round "-"]
[White "BeenCan"]
[Black "hipposcottimus"]
[Result "0-1"]
[CurrentPosition "2r5/7P/1k5K/p1p3P1/Rp6/1P6/P4P2/8 w - -"]
[Timezone "UTC"]
[ECO "A06"]
[ECOUrl "https://www.chess.com/openings/Reti-Opening-Nimzowitsch-Larsen-Attack-2...Bg4-3.Bb2-Bxf3-4.exf3"]
[UTCDate "2010.12.13"]
[UTCTime "18:06:00"]
[WhiteElo "1619"]
[BlackElo "1608"]
[TimeControl "60"]
[Termination "hipposcottimus won on time"]
[StartTime "18:06:00"]
[EndDate "2010.12.13"]
[EndTime "18:08:07"]
[Link "https://www.chess.com/game/live/76942925"]

1. Nf3 {[%clk 0:01:00]} 1... d5 {[%clk 0:01:00]} 2. b3 {[%clk 0:00:59.8]} 2... Bg4 {[%clk 0:00:59.6]} 3. Bb2 {[%clk 0:00:59]} 3... Bxf3 {[%clk 0:00:58.7]} 4. exf3 {[%clk 0:00:58.3]} 4... Nc6 {[%clk 0:00:56.8]} 5. Be2 {[%clk 0:00:58]} 5... f5 {[%clk 0:00:56.1]} 6. O-O {[%clk 0:00:57.6]} 6... e5 {[%clk 0:00:55.6]} 7. c4 {[%clk 0:00:56.3]} 7... Nf6 {[%clk 0:00:54.3]} 8. cxd5 {[%clk 0:00:55.4]} 8... Nxd5 {[%clk 0:00:53.8]} 9. d4 {[%clk 0:00:54.3]} 9... Bd6 {[%clk 0:00:52.7]} 10. dxe5 {[%clk 0:00:53]} 10... Bxe5 {[%clk 0:00:52.3]} 11. Bxe5 {[%clk 0:00:52.1]} 11... Nxe5 {[%clk 0:00:52]} 12. Nd2 {[%clk 0:00:47.1]} 12... c6 {[%clk 0:00:51]} 13. Nc4 {[%clk 0:00:46.1]} 13... Nxc4 {[%clk 0:00:49.6]} 14. Bxc4 {[%clk 0:00:45.5]} 14... Nc7 {[%clk 0:00:49]} 15. Qxd8+ {[%clk 0:00:43.9]} 15... Rxd8 {[%clk 0:00:48.7]} 16. Rfe1+ {[%clk 0:00:42.9]} 16... Kd7 {[%clk 0:00:45.6]} 17. Rad1+ {[%clk 0:00:39.7]} 17... Kc8 {[%clk 0:00:45.3]} 18. Rxd8+ {[%clk 0:00:37.8]} 18... Rxd8 {[%clk 0:00:45]} 19. Re7 {[%clk 0:00:35.7]} 19... g6 {[%clk 0:00:44.7]} 20. Rxh7 {[%clk 0:00:34.1]} 20... Ne6 {[%clk 0:00:43.3]} 21. g3 {[%clk 0:00:30]} 21... Nd4 {[%clk 0:00:41.4]} 22. Rg7 {[%clk 0:00:27.1]} 22... Nxf3+ {[%clk 0:00:40.2]} 23. Kg2 {[%clk 0:00:25.7]} 23... Ne5 {[%clk 0:00:39.1]} 24. Be6+ {[%clk 0:00:23.7]} 24... Kb8 {[%clk 0:00:37.2]} 25. h4 {[%clk 0:00:22.4]} 25... Re8 {[%clk 0:00:36.3]} 26. Bf7 {[%clk 0:00:20.7]} 26... Rf8 {[%clk 0:00:35.4]} 27. Bxg6 {[%clk 0:00:19.3]} 27... Nxg6 {[%clk 0:00:35.1]} 28. Rxg6 {[%clk 0:00:18.4]} 28... Rh8 {[%clk 0:00:34.8]} 29. Rf6 {[%clk 0:00:17.2]} 29... Rd8 {[%clk 0:00:34.5]} 30. Rxf5 {[%clk 0:00:15.9]} 30... Rd2 {[%clk 0:00:34.2]} 31. Ra5 {[%clk 0:00:14.6]} 31... Rb2 {[%clk 0:00:33.1]} 32. Ra4 {[%clk 0:00:13.9]} 32... b5 {[%clk 0:00:32.2]} 33. Ra3 {[%clk 0:00:11.6]} 33... Kb7 {[%clk 0:00:31.8]} 34. Kf3 {[%clk 0:00:10.2]} 34... Kb6 {[%clk 0:00:31.4]} 35. g4 {[%clk 0:00:09.4]} 35... Rc2 {[%clk 0:00:29.2]} 36. h5 {[%clk 0:00:09]} 36... Rc5 {[%clk 0:00:28.9]} 37. Kg2 {[%clk 0:00:08.4]} 37... Rg5 {[%clk 0:00:27.6]} 38. Kh3 {[%clk 0:00:07.8]} 38... Rg8 {[%clk 0:00:26.2]} 39. Kh4 {[%clk 0:00:07.3]} 39... b4 {[%clk 0:00:25.9]} 40. Ra4 {[%clk 0:00:05.2]} 40... a5 {[%clk 0:00:23.8]} 41. h6 {[%clk 0:00:04.2]} 41... Rh8 {[%clk 0:00:22.5]} 42. Kh5 {[%clk 0:00:03.8]} 42... Rh7 {[%clk 0:00:21.7]} 43. Kg6 {[%clk 0:00:02.9]} 43... Rh8 {[%clk 0:00:21.4]} 44. h7 {[%clk 0:00:02.2]} 44... Rb8 {[%clk 0:00:21]} 45. g5 {[%clk 0:00:00.5]} 45... c5 {[%clk 0:00:17.2]} 46. Kh6 {[%clk 0:00:00.1]} 46... Rc8 {[%clk 0:00:16.4]} 0-1

[Event "Live Chess"]
[Site "Chess.com"]
[Date "2010.12.13"]
[Round "-"]
[White "hipposcottimus"]
[Black "BeenCan"]
[Result "1-0"]
[CurrentPosition "r5k1/P1r2pbp/4p1p1/3b4/2p2P2/2P5/5QPP/R2R2K1 b - -"]
[Timezone "UTC"]
[ECO "B02"]
[ECOUrl "https://www.chess.com/openings/Alekhines-Defense-Normal-Variation-3.Nf3-d6"]
[UTCDate "2010.12.13"]
[UTCTime "18:03:34"]
[WhiteElo "1599"]
[BlackElo "1628"]
[TimeControl "60"]
[Termination "hipposcottimus won on time"]
[StartTime "18:03:34"]
[EndDate "2010.12.13"]
[EndTime "18:05:48"]
[Link "https://www.chess.com/game/live/76942291"]

1. e4 {[%clk 0:01:00]} 1... Nf6 {[%clk 0:01:00]} 2. e5 {[%clk 0:00:59.5]} 2... Nd5 {[%clk 0:00:59.3]} 3. Nf3 {[%clk 0:00:58.7]} 3... d6 {[%clk 0:00:58.1]} 4. Bc4 {[%clk 0:00:57.8]} 4... Nb6 {[%clk 0:00:56.9]} 5. Bb3 {[%clk 0:00:55.2]} 5... dxe5 {[%clk 0:00:56]} 6. Ng5 {[%clk 0:00:54]} 6... e6 {[%clk 0:00:54.6]} 7. Qe2 {[%clk 0:00:52.2]} 7... Qxg5 {[%clk 0:00:53.3]} 8. O-O {[%clk 0:00:44.9]} 8... Bd6 {[%clk 0:00:50.3]} 9. d4 {[%clk 0:00:44.4]} 9... exd4 {[%clk 0:00:48.8]} 10. Bxg5 {[%clk 0:00:42.7]} 10... O-O {[%clk 0:00:47.5]} 11. Nd2 {[%clk 0:00:40.2]} 11... c5 {[%clk 0:00:46.4]} 12. Nc4 {[%clk 0:00:38.4]} 12... Nxc4 {[%clk 0:00:45]} 13. Bxc4 {[%clk 0:00:37.8]} 13... a6 {[%clk 0:00:44.7]} 14. a4 {[%clk 0:00:36.1]} 14... b5 {[%clk 0:00:44]} 15. axb5 {[%clk 0:00:35]} 15... Bb7 {[%clk 0:00:42.2]} 16. bxa6 {[%clk 0:00:33.2]} 16... Bc6 {[%clk 0:00:35.1]} 17. a7 {[%clk 0:00:32.3]} 17... Nd7 {[%clk 0:00:33.2]} 18. Qd2 {[%clk 0:00:24.4]} 18... Ne5 {[%clk 0:00:32.1]} 19. Bf4 {[%clk 0:00:23.2]} 19... Nxc4 {[%clk 0:00:30.9]} 20. Qd3 {[%clk 0:00:21.7]} 20... Bxf4 {[%clk 0:00:28]} 21. Qxc4 {[%clk 0:00:21.1]} 21... Bd6 {[%clk 0:00:25.5]} 22. c3 {[%clk 0:00:19.4]} 22... Bd5 {[%clk 0:00:24.1]} 23. Qa4 {[%clk 0:00:16.1]} 23... dxc3 {[%clk 0:00:23]} 24. bxc3 {[%clk 0:00:15.7]} 24... Be5 {[%clk 0:00:21.3]} 25. Qa5 {[%clk 0:00:15.4]} 25... Rfc8 {[%clk 0:00:17.8]} 26. Qa6 {[%clk 0:00:14.3]} 26... Rc6 {[%clk 0:00:15.4]} 27. Qa3 {[%clk 0:00:11.3]} 27... g6 {[%clk 0:00:13.6]} 28. Qc1 {[%clk 0:00:11]} 28... c4 {[%clk 0:00:11.8]} 29. f4 {[%clk 0:00:10.5]} 29... Bg7 {[%clk 0:00:09.7]} 30. Rd1 {[%clk 0:00:10.2]} 30... Rd6 {[%clk 0:00:07.9]} 31. Qc2 {[%clk 0:00:09.8]} 31... Rd7 {[%clk 0:00:06.2]} 32. Qa4 {[%clk 0:00:09.3]} 32... Rdd8 {[%clk 0:00:03.5]} 33. Qa5 {[%clk 0:00:08.3]} 33... Rdc8 {[%clk 0:00:02.7]} 34. Qa6 {[%clk 0:00:07.5]} 34... Rc6 {[%clk 0:00:01.8]} 35. Qa4 {[%clk 0:00:05.1]} 35... Rcc8 {[%clk 0:00:00.8]} 36. Qc2 {[%clk 0:00:04.7]} 36... Rc7 {[%clk 0:00:00.2]} 37. Qf2 {[%clk 0:00:04.4]} 1-0

[Event "Live Chess"]
[Site "Chess.com"]
[Date "2010.12.13"]
[Round "-"]
[White "BeenCan"]
[Black "hipposcottimus"]
[Result "1-0"]
[CurrentPosition "6k1/pp3p1p/6p1/3r4/6Q1/1PB5/PK3PPP/2R5 b - -"]
[Timezone "UTC"]
[ECO "A06"]
[ECOUrl "https://www.chess.com/openings/Reti-Opening-Nimzowitsch-Larsen-Attack-2...Bg4-3.e3"]
[UTCDate "2010.12.13"]
[UTCTime "18:01:56"]
[WhiteElo "1637"]
[BlackElo "1590"]
[TimeControl "60"]
[Termination "BeenCan won by resignation"]
[StartTime "18:01:56"]
[EndDate "2010.12.13"]
[EndTime "18:03:20"]
[Link "https://www.chess.com/game/live/76941822"]

1. Nf3 {[%clk 0:01:00]} 1... d5 {[%clk 0:01:00]} 2. b3 {[%clk 0:00:59.5]} 2... Bg4 {[%clk 0:00:59.6]} 3. e3 {[%clk 0:00:57.9]} 3... e5 {[%clk 0:00:59.3]} 4. Be2 {[%clk 0:00:56.9]} 4... e4 {[%clk 0:00:59]} 5. Nd4 {[%clk 0:00:56.5]} 5... Bxe2 {[%clk 0:00:58.4]} 6. Qxe2 {[%clk 0:00:55.8]} 6... Nc6 {[%clk 0:00:58.1]} 7. Kd1 {[%clk 0:00:54.1]} 7... Nxd4 {[%clk 0:00:57]} 8. exd4 {[%clk 0:00:52.1]} 8... Nf6 {[%clk 0:00:56.3]} 9. Bb2 {[%clk 0:00:48.3]} 9... Bd6 {[%clk 0:00:54.9]} 10. Nc3 {[%clk 0:00:47.8]} 10... O-O {[%clk 0:00:54.6]} 11. d3 {[%clk 0:00:47.1]} 11... c5 {[%clk 0:00:54.3]} 12. dxe4 {[%clk 0:00:45.5]} 12... cxd4 {[%clk 0:00:53.9]} 13. Nxd5 {[%clk 0:00:43.9]} 13... Nxd5 {[%clk 0:00:51.7]} 14. exd5 {[%clk 0:00:43.5]} 14... Re8 {[%clk 0:00:50.5]} 15. Qd3 {[%clk 0:00:42.4]} 15... Qa5 {[%clk 0:00:48.5]} 16. c3 {[%clk 0:00:40.2]} 16... dxc3 {[%clk 0:00:46.7]} 17. Bxc3 {[%clk 0:00:39.1]} 17... Qb6 {[%clk 0:00:46.4]} 18. Kc2 {[%clk 0:00:38.2]} 18... Qc7 {[%clk 0:00:45.9]} 19. Rae1 {[%clk 0:00:37.2]} 19... Rac8 {[%clk 0:00:45.5]} 20. Kb2 {[%clk 0:00:36.2]} 20... Red8 {[%clk 0:00:44.4]} 21. Qd4 {[%clk 0:00:34.8]} 21... Bc5 {[%clk 0:00:43.2]} 22. Qg4 {[%clk 0:00:30.7]} 22... g6 {[%clk 0:00:37.8]} 23. Rc1 {[%clk 0:00:27.8]} 23... Qa5 {[%clk 0:00:35.2]} 24. Bxa5 {[%clk 0:00:21.7]} 24... Bb4 {[%clk 0:00:32.9]} 25. Bxb4 {[%clk 0:00:20.6]} 25... Rxc1 {[%clk 0:00:32.3]} 26. Rxc1 {[%clk 0:00:19]} 26... Rxd5 {[%clk 0:00:32]} 27. Bc3 {[%clk 0:00:17.8]} 1-0

[Event "Live Chess"]
[Site "Chess.com"]
[Date "2010.12.13"]
[Round "-"]
[White "hipposcottimus"]
[Black "BeenCan"]
[Result "0-1"]
[CurrentPosition "6k1/1p1r2pp/pK6/5p2/2P1b3/3r4/7P/8 w - -"]
[Timezone "UTC"]
[ECO "B02"]
[ECOUrl "https://www.chess.com/openings/Alekhines-Defense-Two-Pawns-Attack-3...Nb6"]
[UTCDate "2010.12.13"]
[UTCTime "17:59:23"]
[WhiteElo "1597"]
[BlackElo "1630"]
[TimeControl "60"]
[Termination "BeenCan won on time"]
[StartTime "17:59:23"]
[EndDate "2010.12.13"]
[EndTime "18:01:40"]
[Link "https://www.chess.com/game/live/76941049"]

1. e4 {[%clk 0:01:00]} 1... Nf6 {[%clk 0:01:00]} 2. e5 {[%clk 0:00:58.6]} 2... Nd5 {[%clk 0:00:58.9]} 3. c4 {[%clk 0:00:56]} 3... Nb6 {[%clk 0:00:57.9]} 4. d3 {[%clk 0:00:45.6]} 4... d6 {[%clk 0:00:57.3]} 5. Nc3 {[%clk 0:00:44.8]} 5... dxe5 {[%clk 0:00:56.1]} 6. c5 {[%clk 0:00:42.5]} 6... Nd5 {[%clk 0:00:54.8]} 7. Ne4 {[%clk 0:00:40.4]} 7... e6 {[%clk 0:00:52.2]} 8. Nf3 {[%clk 0:00:40]} 8... f5 {[%clk 0:00:47.5]} 9. Bg5 {[%clk 0:00:29.3]} 9... Be7 {[%clk 0:00:46.2]} 10. Bxe7 {[%clk 0:00:27.9]} 10... Qxe7 {[%clk 0:00:45.4]} 11. Neg5 {[%clk 0:00:25.7]} 11... Qxc5 {[%clk 0:00:42.4]} 12. Nxe5 {[%clk 0:00:24.2]} 12... Nc3 {[%clk 0:00:37.9]} 13. Qb3 {[%clk 0:00:21.5]} 13... Qxe5+ {[%clk 0:00:35]} 14. Kd2 {[%clk 0:00:17.8]} 14... Nd5 {[%clk 0:00:33]} 15. Be2 {[%clk 0:00:14.9]} 15... O-O {[%clk 0:00:32.1]} 16. Rac1 {[%clk 0:00:13.5]} 16... Nc6 {[%clk 0:00:30.2]} 17. Rcd1 {[%clk 0:00:13.1]} 17... Bd7 {[%clk 0:00:29]} 18. Kc1 {[%clk 0:00:12.8]} 18... Nf4 {[%clk 0:00:27.4]} 19. Kb1 {[%clk 0:00:12.5]} 19... Nd4 {[%clk 0:00:26.3]} 20. Rhe1 {[%clk 0:00:11.5]} 20... Nxb3 {[%clk 0:00:24.9]} 21. axb3 {[%clk 0:00:11.1]} 21... Nxe2 {[%clk 0:00:23.8]} 22. Rd2 {[%clk 0:00:09.2]} 22... Nc3+ {[%clk 0:00:22]} 23. bxc3 {[%clk 0:00:07.7]} 23... Qxe1+ {[%clk 0:00:21.5]} 24. Kc2 {[%clk 0:00:07.5]} 24... e5 {[%clk 0:00:19.3]} 25. Rd1 {[%clk 0:00:07.1]} 25... Qxf2+ {[%clk 0:00:17.9]} 26. Rd2 {[%clk 0:00:06.9]} 26... Qe1 {[%clk 0:00:16.1]} 27. c4 {[%clk 0:00:06.6]} 27... Qe3 {[%clk 0:00:14.5]} 28. Rd1 {[%clk 0:00:06.3]} 28... Qxg5 {[%clk 0:00:13.5]} 29. Rd2 {[%clk 0:00:06]} 29... Qxd2+ {[%clk 0:00:10.9]} 30. Kxd2 {[%clk 0:00:04.8]} 30... Bc6 {[%clk 0:00:10.6]} 31. Kc3 {[%clk 0:00:04.5]} 31... Bxg2 {[%clk 0:00:09.7]} 32. b4 {[%clk 0:00:04.3]} 32... e4 {[%clk 0:00:09.4]} 33. b5 {[%clk 0:00:03.9]} 33... exd3 {[%clk 0:00:08.5]} 34. Kxd3 {[%clk 0:00:03.6]} 34... Be4+ {[%clk 0:00:08.1]} 35. Kc3 {[%clk 0:00:03.3]} 35... Rfd8 {[%clk 0:00:07.3]} 36. Kb4 {[%clk 0:00:03.1]} 36... Rd3 {[%clk 0:00:07]} 37. b6 {[%clk 0:00:02.7]} 37... a6 {[%clk 0:00:06.2]} 38. Kc5 {[%clk 0:00:01.7]} 38... Rc8 {[%clk 0:00:05.4]} 39. bxc7 {[%clk 0:00:00.3]} 39... Rxc7+ {[%clk 0:00:04.6]} 40. Kb6 {[%clk 0:00:00.1]} 40... Rcd7 {[%clk 0:00:03.2]} 0-1

[Event "Live Chess"]
[Site "Chess.com"]
[Date "2010.12.13"]
[Round "-"]
[White "BeenCan"]
[Black "hipposcottimus"]
[Result "0-1"]
[CurrentPosition "4r2k/R7/5bp1/3B3p/2P5/1P1KP3/P5P1/8 w - -"]
[Timezone "UTC"]
[ECO "A06"]
[ECOUrl "https://www.chess.com/openings/Reti-Opening-Nimzowitsch-Larsen-Attack-2...Bg4-3.e3"]
[UTCDate "2010.12.13"]
[UTCTime "17:56:49"]
[WhiteElo "1622"]
[BlackElo "1605"]
[TimeControl "60"]
[Termination "hipposcottimus won on time"]
[StartTime "17:56:49"]
[EndDate "2010.12.13"]
[EndTime "17:58:59"]
[Link "https://www.chess.com/game/live/76940329"]

1. Nf3 {[%clk 0:01:00]} 1... d5 {[%clk 0:01:00]} 2. b3 {[%clk 0:00:59.6]} 2... Bg4 {[%clk 0:00:59.6]} 3. e3 {[%clk 0:00:58]} 3... e5 {[%clk 0:00:57]} 4. Be2 {[%clk 0:00:56.4]} 4... Bxf3 {[%clk 0:00:54.3]} 5. Bxf3 {[%clk 0:00:54.7]} 5... e4 {[%clk 0:00:54.1]} 6. Be2 {[%clk 0:00:53.7]} 6... f5 {[%clk 0:00:52.3]} 7. Bb2 {[%clk 0:00:53.2]} 7... Nf6 {[%clk 0:00:52]} 8. O-O {[%clk 0:00:52.8]} 8... Be7 {[%clk 0:00:50.9]} 9. d3 {[%clk 0:00:50.7]} 9... Nc6 {[%clk 0:00:48.7]} 10. dxe4 {[%clk 0:00:48.3]} 10... dxe4 {[%clk 0:00:48.4]} 11. f3 {[%clk 0:00:47.2]} 11... O-O {[%clk 0:00:46.4]} 12. fxe4 {[%clk 0:00:45.8]} 12... fxe4 {[%clk 0:00:46.1]} 13. Nc3 {[%clk 0:00:43.2]} 13... Qe8 {[%clk 0:00:45.4]} 14. Rf4 {[%clk 0:00:35.4]} 14... Bb4 {[%clk 0:00:41.3]} 15. Nxe4 {[%clk 0:00:33.3]} 15... Nxe4 {[%clk 0:00:40]} 16. Rxf8+ {[%clk 0:00:31.5]} 16... Qxf8 {[%clk 0:00:35.6]} 17. Qd5+ {[%clk 0:00:30.8]} 17... Kh8 {[%clk 0:00:31.6]} 18. Qxe4 {[%clk 0:00:30.3]} 18... Re8 {[%clk 0:00:31.2]} 19. Qf3 {[%clk 0:00:24.4]} 19... Qe7 {[%clk 0:00:29.2]} 20. Qg3 {[%clk 0:00:21.2]} 20... Bd6 {[%clk 0:00:23.3]} 21. Qf2 {[%clk 0:00:19.4]} 21... Ne5 {[%clk 0:00:19]} 22. Bxe5 {[%clk 0:00:17.4]} 22... Qxe5 {[%clk 0:00:18.1]} 23. Rd1 {[%clk 0:00:16.9]} 23... Qxh2+ {[%clk 0:00:17]} 24. Kf1 {[%clk 0:00:15.5]} 24... Qh1+ {[%clk 0:00:16.7]} 25. Qg1 {[%clk 0:00:14.6]} 25... Qxg1+ {[%clk 0:00:16.4]} 26. Kxg1 {[%clk 0:00:13.6]} 26... Rf8 {[%clk 0:00:14.3]} 27. Bf3 {[%clk 0:00:12.4]} 27... Be7 {[%clk 0:00:13.5]} 28. Kf2 {[%clk 0:00:11.7]} 28... c6 {[%clk 0:00:13.1]} 29. Rd7 {[%clk 0:00:10.6]} 29... Bc5 {[%clk 0:00:12.8]} 30. Rxb7 {[%clk 0:00:09.4]} 30... g6 {[%clk 0:00:12.1]} 31. c4 {[%clk 0:00:08.3]} 31... Bb6 {[%clk 0:00:11.6]} 32. Ke2 {[%clk 0:00:05.9]} 32... Bd8 {[%clk 0:00:11.2]} 33. Bxc6 {[%clk 0:00:04.7]} 33... Bf6 {[%clk 0:00:09.8]} 34. Bd5 {[%clk 0:00:04]} 34... Rd8 {[%clk 0:00:08.9]} 35. Rxa7 {[%clk 0:00:03]} 35... h5 {[%clk 0:00:07.8]} 36. Kd3 {[%clk 0:00:01.4]} 36... Re8 {[%clk 0:00:07.5]} 0-1

[Event "Live Chess"]
[Site "Chess.com"]
[Date "2010.12.13"]
[Round "-"]
[White "Looser_No1"]
[Black "hipposcottimus"]
[Result "0-1"]
[CurrentPosition "r5k1/pb3pp1/7p/q1p2BrP/1p1p2P1/BP6/P1P5/2KQ2R1 w - -"]
[Timezone "UTC"]
[ECO "C45"]
[ECOUrl "https://www.chess.com/openings/Scotch-Game"]
[UTCDate "2010.12.13"]
[UTCTime "17:45:06"]
[WhiteElo "1523"]
[BlackElo "1596"]
[TimeControl "60"]
[Termination "hipposcottimus won on time"]
[StartTime "17:45:06"]
[EndDate "2010.12.13"]
[EndTime "17:46:59"]
[Link "https://www.chess.com/game/live/76937009"]

1. e4 {[%clk 0:01:00]} 1... e5 {[%clk 0:01:00]} 2. Nf3 {[%clk 0:00:59.3]} 2... Nc6 {[%clk 0:00:58.8]} 3. d4 {[%clk 0:00:57.8]} 3... Nf6 {[%clk 0:00:58.4]} 4. Nc3 {[%clk 0:00:56.4]} 4... Bb4 {[%clk 0:00:55.5]} 5. dxe5 {[%clk 0:00:52.7]} 5... Nxe4 {[%clk 0:00:53.4]} 6. Qd3 {[%clk 0:00:48.4]} 6... d5 {[%clk 0:00:50.5]} 7. Bd2 {[%clk 0:00:45.9]} 7... Bxc3 {[%clk 0:00:48.5]} 8. Bxc3 {[%clk 0:00:44.7]} 8... O-O {[%clk 0:00:48.1]} 9. O-O-O {[%clk 0:00:42.6]} 9... Nxf2 {[%clk 0:00:46.3]} 10. Qe2 {[%clk 0:00:35.5]} 10... Nxd1 {[%clk 0:00:46]} 11. Qxd1 {[%clk 0:00:34.4]} 11... d4 {[%clk 0:00:45.6]} 12. Bb4 {[%clk 0:00:32]} 12... Re8 {[%clk 0:00:41.9]} 13. Bd3 {[%clk 0:00:30.9]} 13... Nxe5 {[%clk 0:00:40.7]} 14. Nxe5 {[%clk 0:00:24.6]} 14... Rxe5 {[%clk 0:00:40.4]} 15. h4 {[%clk 0:00:22]} 15... c5 {[%clk 0:00:32.8]} 16. Ba3 {[%clk 0:00:19.4]} 16... Qa5 {[%clk 0:00:28.3]} 17. h5 {[%clk 0:00:16]} 17... h6 {[%clk 0:00:26.7]} 18. g4 {[%clk 0:00:13]} 18... Rg5 {[%clk 0:00:24]} 19. Rg1 {[%clk 0:00:08.6]} 19... b5 {[%clk 0:00:21.8]} 20. Bf5 {[%clk 0:00:04.5]} 20... Bb7 {[%clk 0:00:18.6]} 21. b3 {[%clk 0:00:00.2]} 21... b4 {[%clk 0:00:17.6]} 0-1

[Event "Live Chess"]
[Site "Chess.com"]
[Date "2010.12.13"]
[Round "-"]
[White "hipposcottimus"]
[Black "Looser_No1"]
[Result "0-1"]
[CurrentPosition "7r/p1p2kpp/2b5/5P2/8/3P2rP/P4q1K/4R3 w - -"]
[Timezone "UTC"]
[ECO "C57"]
[ECOUrl "https://www.chess.com/openings/Italian-Game-Fried-Liver-Attack-6...Kxf7-7.Qf3"]
[UTCDate "2010.12.13"]
[UTCTime "17:42:57"]
[WhiteElo "1589"]
[BlackElo "1530"]
[TimeControl "60"]
[Termination "Looser_No1 won by checkmate"]
[StartTime "17:42:57"]
[EndDate "2010.12.13"]
[EndTime "17:44:53"]
[Link "https://www.chess.com/game/live/76936422"]

1. e4 {[%clk 0:01:00]} 1... e5 {[%clk 0:01:00]} 2. Nf3 {[%clk 0:00:58.4]} 2... Nc6 {[%clk 0:00:59.3]} 3. Bc4 {[%clk 0:00:58.1]} 3... Nf6 {[%clk 0:00:58.7]} 4. Ng5 {[%clk 0:00:57.8]} 4... d5 {[%clk 0:00:57.5]} 5. exd5 {[%clk 0:00:57.6]} 5... Nxd5 {[%clk 0:00:57]} 6. Nxf7 {[%clk 0:00:56.2]} 6... Kxf7 {[%clk 0:00:54.5]} 7. Qf3+ {[%clk 0:00:55.9]} 7... Qf6 {[%clk 0:00:51.2]} 8. Bxd5+ {[%clk 0:00:54.2]} 8... Be6 {[%clk 0:00:50.8]} 9. Bxc6 {[%clk 0:00:52.9]} 9... bxc6 {[%clk 0:00:50]} 10. Qxc6 {[%clk 0:00:51.6]} 10... Bd6 {[%clk 0:00:49.6]} 11. Nc3 {[%clk 0:00:49.2]} 11... e4 {[%clk 0:00:39.3]} 12. Nxe4 {[%clk 0:00:45.8]} 12... Qe5 {[%clk 0:00:38.3]} 13. d3 {[%clk 0:00:36.3]} 13... Bd5 {[%clk 0:00:37.3]} 14. O-O {[%clk 0:00:34.7]} 14... Bxc6 {[%clk 0:00:35.6]} 15. f4 {[%clk 0:00:30]} 15... Qd4+ {[%clk 0:00:31.9]} 16. Kh1 {[%clk 0:00:27.5]} 16... Rab8 {[%clk 0:00:24.5]} 17. Nxd6+ {[%clk 0:00:25]} 17... Qxd6 {[%clk 0:00:22]} 18. f5 {[%clk 0:00:24.8]} 18... Qd4 {[%clk 0:00:19.2]} 19. Bf4 {[%clk 0:00:24.5]} 19... Rxb2 {[%clk 0:00:16.2]} 20. Bg3 {[%clk 0:00:24.2]} 20... Rxc2 {[%clk 0:00:14.9]} 21. Rae1 {[%clk 0:00:23.6]} 21... Rxg2 {[%clk 0:00:12.6]} 22. Rg1 {[%clk 0:00:18.8]} 22... Rxg3+ {[%clk 0:00:10.5]} 23. Rg2 {[%clk 0:00:16.6]} 23... Rxg2 {[%clk 0:00:08.8]} 24. h3 {[%clk 0:00:13.4]} 24... Rg3+ {[%clk 0:00:06.9]} 25. Kh2 {[%clk 0:00:12.4]} 25... Qf2# {[%clk 0:00:04.6]} 0-1